fUSD/lending_fUSD_20240105
["ID","MTS","AMOUNT","RATE_DAILY","PERIOD"]
[310253191,1704424253290,-189.81504283,0.00035616,3]
[310253192,1704424253300,-500.0,0.00035616,3]
[310253193,1704424253310,-500.0,0.00035616,3]
[310253194,1704424253320,-511.06205805,0.00035616,3]
[310253195,1704424253329,-500.0,0.00035616,3]
[310253196,1704424253338,-500.0,0.00035616,3]
[310253197,1704424253348,-500.0,0.00035616,3]
[310253198,1704424253357,-500.0,0.00035616,3]
[310253199,1704424253367,-500.0,0.00035616,3]
[310253200,1704424253377,-500.0,0.00035616,3]
[310253201,1704424253386,-500.0,0.00035616,3]
[310253202,1704424253396,-500.0,0.00035616,3]
[310253203,1704424253405,-500.0,0.00035616,3]
[310253204,1704424253415,-499.3509313,0.00035616,3]
[310253205,1704424253424,-502.99167666,0.00035616,3]
[310253206,1704424253433,-500.0,0.00035616,3]
[310253207,1704424253444,-500.0,0.00035616,3]
[310253208,1704424253453,-500.0,0.00035616,3]
[310253209,1704424253463,-500.0,0.00035616,3]
[310253210,1704424253472,-500.0,0.00035616,3]
[310253211,1704424253482,-500.0,0.00035616,3]
[310253212,1704424253492,-500.0,0.00035616,3]
[310253213,1704424253501,-500.0,0.00035616,3]
[310253214,1704424253511,-500.0,0.00035616,3]
[310253215,1704424253520,-500.0,0.00035616,3]
[310253216,1704424253529,-500.0,0.00035616,3]
[310253217,1704424253539,-500.0,0.00035616,3]
[310253218,1704424253549,-518.23589676,0.00035616,3]
[310253219,1704424253561,-500.0,0.00035616,3]
[310253220,1704424253570,-500.0,0.00035616,3]
[310253221,1704424253580,-500.0,0.00035616,3]
[310253222,1704424253590,-500.0,0.00035616,3]
[310253223,1704424253599,-540.31068373,0.00035616,2]
[310253224,1704424253609,-500.0,0.00035616,3]
[310253225,1704424253618,-500.0,0.00035616,3]
[310253226,1704424253628,-500.0,0.00035616,3]
[310253227,1704424253638,-500.0,0.00035616,3]
[310253228,1704424253647,-500.0,0.00035616,3]
[310253229,1704424253657,-513.8050098,0.00035616,3]
[310253230,1704424253666,-500.0,0.00035616,3]
[310253231,1704424253676,-500.0,0.00035616,3]
[310253232,1704424253685,-500.0,0.00035616,3]
[310253233,1704424253694,-500.0,0.00035616,3]
[310253234,1704424253704,-500.0,0.00035616,3]
[310253235,1704424253713,-500.0,0.00035616,3]
[310253236,1704424253723,-500.0,0.00035616,3]
[310253237,1704424253732,-500.0,0.00035616,3]
[310253238,1704424253741,-508.78047256,0.00035616,3]
[310253239,1704424253750,-511.03490565,0.00035616,3]
[310253240,1704424253760,-500.0,0.00035616,3]
[310253241,1704424253769,-500.0,0.00035616,3]
[310253242,1704424253779,-544.5500223,0.00035616,3]
[310253243,1704424253788,-500.0,0.00035616,3]
[310253244,1704424253797,-500.0,0.00035616,3]
[310253245,1704424253807,-520.45066568,0.00035616,3]
[310253246,1704424253817,-500.0,0.00035616,3]
[310253247,1704424253827,-500.0,0.00035616,3]
[310253248,1704424253837,-500.0,0.00035616,3]
[310253249,1704424253847,-500.0,0.00035616,3]
[310253250,1704424253858,-502.08988428,0.00035616,3]
[310253251,1704424253867,-507.76607123,0.00035616,3]
[310253252,1704424253878,-500.0,0.00035616,3]
[310253253,1704424253887,-500.0,0.00035616,3]
[310253254,1704424253897,-467.13135673,0.00035616,3]
[310253255,1704424253907,-500.0,0.00035616,3]
[310253256,1704424253916,-500.0,0.00035616,3]
[310253257,1704424253928,-500.0,0.00035616,3]
[310253258,1704424253938,-500.0,0.00035616,3]
[310253259,1704424253947,-500.0,0.00035616,3]
[310253260,1704424253956,-500.0,0.00035616,3]
[310253261,1704424253966,-500.0,0.00035616,3]
[310253262,1704424253975,-500.0,0.00035616,3]
[310253263,1704424253986,-500.0,0.00035616,3]
[310253264,1704424253995,-500.0,0.00035616,3]
[310253265,1704424254005,-500.0,0.00035616,3]
[310253266,1704424254014,-500.0,0.00035616,3]
[310253267,1704424254023,-500.0,0.00035616,3]
[310253268,1704424254032,-500.0,0.00035616,3]
[310253269,1704424254042,-500.0,0.00035616,3]
[310253270,1704424254051,-506.69433889,0.00035616,3]
[310253271,1704424254063,-500.0,0.00035616,3]
[310253272,1704424254072,-500.0,0.00035616,3]
[310253273,1704424254081,-500.0,0.00035616,3]
[310253274,1704424254091,-500.0,0.00035616,3]
[310253275,1704424254100,-500.0,0.00035616,3]
[310253276,1704424254110,-500.0,0.00035616,3]
[310253277,1704424254120,-500.0,0.00035616,3]
[310253278,1704424254129,-500.0,0.00035616,3]
[310253279,1704424254138,-500.0,0.00035616,3]
[310253280,1704424254147,-502.91380512,0.00035616,3]
[310253281,1704424254159,-500.0,0.00035616,3]
[310253282,1704424254168,-500.0,0.00035616,3]
[310253283,1704424254178,-500.0,0.00035616,3]
[310253284,1704424254188,-196.4272319,0.00035616,3]
[310253285,1704424254197,-507.80347737,0.00035616,3]
[310253286,1704424254207,-500.0,0.00035616,3]
[310253287,1704424254216,-500.0,0.00035616,3]
[310253288,1704424254226,-500.0,0.00035616,3]
[310253289,1704424254236,-500.0,0.00035616,3]
[310253290,1704424254248,-512.75699278,0.00035616,3]
[310253291,1704424254258,-593.83,0.00035616,3]
[310253292,1704424254268,-500.0,0.00035616,3]
[310253293,1704424254278,-614.61466687,0.00035616,3]
[310253294,1704424254288,-500.0,0.00035616,3]
[310253295,1704424254298,-500.0,0.00035616,3]
[310253296,1704424254307,-500.0,0.00035616,3]
[310253297,1704424254316,-500.0,0.00035616,3]
[310253298,1704424254326,-500.0,0.00035616,3]
[310253299,1704424254336,-560.88992474,0.00035616,3]
[310253300,1704424254346,-500.0,0.00035616,3]
[310253301,1704424254356,-569.38430905,0.00035616,3]
[310253302,1704424254365,-510.72654076,0.00035616,3]
[310253303,1704424254375,-500.0,0.00035616,3]
[310253304,1704424254385,-159.23700107,0.00035616,3]
[310253305,1704424254396,-500.0,0.00035616,3]
[310253306,1704424254405,-500.0,0.00035616,3]
[310253307,1704424254415,-500.0,0.00035616,3]
[310253308,1704424254425,-504.70145172,0.00035616,3]
[310253309,1704424254435,-500.0,0.00035616,3]
[310253310,1704424254445,-3647.06,0.00035616,3]
[310253311,1704424254455,-500.0,0.00035616,3]
[310253312,1704424254465,-500.0,0.00035616,3]
[310253313,1704424254475,-500.0,0.00035616,3]
[310253314,1704424254485,-510.79511308,0.00035616,3]
[310253315,1704424254494,-500.0,0.00035616,3]
[310253316,1704424254504,-506.0672218,0.00035616,2]
[310253317,1704424254514,-500.0,0.00035616,3]
[310253318,1704424254524,-500.0,0.00035616,3]
[310253319,1704424254533,-500.0,0.00035616,3]
[310253320,1704424254543,-500.0,0.00035616,3]
[310253321,1704424254553,-500.0,0.00035616,3]
[310253322,1704424254566,-500.0,0.00035616,3]
[310253323,1704424254578,-500.0,0.00035616,3]
[310253324,1704424254588,-500.0,0.00035616,3]
[310253325,1704424254598,-523.05,0.00035616,3]
[310253326,1704424254608,-569.6,0.00035616,3]
[310253327,1704424254618,-619.17654388,0.00035616,3]
[310253328,1704424254628,-500.0,0.00035616,3]
[310253329,1704424254638,-500.0,0.00035616,3]
[310253330,1704424254648,-500.0,0.00035616,3]
[310253331,1704424254659,-500.0,0.00035616,3]
[310253332,1704424254670,-527.89640848,0.00035616,3]
[310253333,1704424254680,-500.0,0.00035616,3]
[310253334,1704424254690,-500.0,0.00035616,3]
[310253335,1704424254701,-500.0,0.00035616,3]
[310253336,1704424254712,-500.0,0.00035616,3]
[310253337,1704424254723,-500.0,0.00035616,3]
[310253338,1704424254734,-500.0,0.00035616,3]
[310253339,1704424254746,-153.56880727,0.00035616,3]
[310253340,1704424254758,-500.0,0.00035616,3]
[310253341,1704424254767,-500.0,0.00035616,3]
[310253342,1704424254778,-500.0,0.00035616,3]
[310253343,1704424254789,-503.1675789,0.00035616,3]
[310253344,1704424254801,-500.0,0.00035616,3]
[310253345,1704424254814,-500.0,0.00035616,3]
[310253346,1704424254824,-1578.13,0.00035616,3]
[310253347,1704424254834,-869.26,0.00035616,3]
[310253348,1704424254845,-500.0,0.00035616,3]
[310253349,1704424254855,-500.0,0.00035616,3]
[310253350,1704424254865,-500.0,0.00035616,3]
[310253351,1704424254874,-500.0,0.00035616,3]
[310253352,1704424254884,-528.78452166,0.00035616,3]
[310253353,1704424254895,-500.0,0.00035616,3]
[310253354,1704424254906,-601.34,0.00035616,3]
[310253355,1704424254917,-500.0,0.00035616,3]
[310253356,1704424254931,-500.0,0.00035616,3]
[310253357,1704424254942,-500.0,0.00035616,3]
[310253358,1704424254952,-500.0,0.00035616,3]
[310253359,1704424254964,-602.04,0.00035616,3]
[310253360,1704424254974,-500.0,0.00035616,3]
[310253361,1704424254985,-499.3930914,0.00035616,3]
[310253362,1704424254998,-500.0,0.00035616,3]
[310253363,1704424255008,-500.0,0.00035616,3]
[310253364,1704424255018,-500.0,0.00035616,3]
[310253365,1704424255029,-500.0,0.00035616,3]
[310253366,1704424255040,-500.0,0.00035616,3]
[310253367,1704424255050,-500.0,0.00035616,3]
[310253368,1704424255062,-500.0,0.00035616,3]
[310253369,1704424255072,-500.0,0.00035616,3]
[310253370,1704424255083,-500.0,0.00035616,3]
[310253371,1704424255094,-500.28315028,0.00035616,3]
[310253372,1704424255105,-500.0,0.00035616,3]
[310253373,1704424255114,-500.0,0.00035616,3]
[310253374,1704424255124,-500.0,0.00035616,3]
[310253375,1704424255133,-559.1,0.00035616,3]
[310253376,1704424255143,-511.24903854,0.00035616,3]
[310253377,1704424255152,-500.0,0.00035616,3]
[310253378,1704424255161,-568.77339239,0.00035616,3]
[310253379,1704424255171,-500.0,0.00035616,3]
[310253380,1704424255181,-500.0,0.00035616,3]
[310253381,1704424255190,-513.68075042,0.00035616,3]
[310253382,1704424255200,-500.0,0.00035616,3]
[310253383,1704424255209,-500.0,0.00035616,3]
[310253384,1704424255219,-500.0,0.00035616,3]
[310253385,1704424255228,-500.0,0.00035616,3]
[310253386,1704424255238,-508.30698279,0.00035616,3]
[310253387,1704424255247,-500.0,0.00035616,3]
[310253388,1704424255256,-500.0,0.00035616,3]
[310253389,1704424255266,-500.0,0.00035616,3]
[310253390,1704424255275,-500.0,0.00035616,3]
[310253391,1704424255285,-552.41711252,0.00035616,3]
[310253392,1704424255294,-504.05833483,0.00035616,3]
[310253393,1704424255312,-500.0,0.00035616,3]
[310253394,1704424255326,-500.0,0.00035616,3]
[310253395,1704424255337,-220.58786404,0.00035616,3]
[310253396,1704424255348,-4769.97,0.00035616,3]
[310253397,1704424255557,-500.0,0.00035616,3]
[310253398,1704424255567,-308.90423367,0.00035616,3]
[310253399,1704424255576,-565.17,0.00035616,3]
[310253400,1704424255585,-500.0,0.00035616,3]
[310253401,1704424255595,-500.0,0.00035616,3]
[310253402,1704424255604,-500.0,0.00035616,3]
[310253403,1704424255613,-500.0,0.00035616,3]
[310253404,1704424255623,-500.0,0.00035616,3]
[310253405,1704424255632,-502.68771507,0.00035616,3]
[310253406,1704424255642,-500.0,0.00035616,3]
[310253407,1704424255651,-500.0,0.00035616,3]
[310253408,1704424255661,-500.0,0.00035616,3]
[310253409,1704424255670,-2681.68,0.00035616,3]
[310253410,1704424255679,-3006.36,0.00035616,3]
[310253411,1704424255688,-500.0,0.00035616,3]
[310253412,1704424255698,-505.2283577,0.00035616,3]
[310253413,1704424255708,-500.0,0.00035616,3]
[310253414,1704424255718,-500.0,0.00035616,3]
[310253415,1704424255727,-774.17,0.00035616,3]
[310253416,1704424255737,-506.04672053,0.00035616,3]
[310253417,1704424255746,-415.39764326,0.00035616,3]
[310253418,1704424255755,-500.0,0.00035616,3]
[310253419,1704424255764,-500.0,0.00035616,3]
[310253420,1704424255773,-500.0,0.00035616,3]
[310253421,1704424255782,-500.0,0.00035616,3]
[310253422,1704424255792,-500.0,0.00035616,3]
[310253423,1704424255802,-776.16,0.00035616,3]
[310253424,1704424255812,-500.0,0.00035616,3]
[310253425,1704424255822,-500.0,0.00035616,3]
[310253426,1704424255831,-500.0,0.00035616,3]
[310253427,1704424255842,-1909.11,0.00035616,3]
[310253428,1704424255851,-1238.67,0.00035616,3]
[310253429,1704424255860,-500.0,0.00035616,3]
[310253430,1704424255870,-529.17,0.00035616,3]
[310253431,1704424255879,-502.01861046,0.00035616,3]
[310253432,1704424255888,-501.70309313,0.00035616,3]
[310253433,1704424255897,-3090.15,0.00035616,3]
[310253434,1704424255907,-500.0,0.00035616,3]
[310253435,1704424255916,-500.0,0.00035616,3]
[310253436,1704424255929,-500.0,0.00035616,3]
[310253437,1704424255938,-504.7254225,0.00035616,3]
[310253438,1704424255947,-500.0,0.00035616,3]
[310253439,1704424255956,-500.0,0.00035616,3]
[310253440,1704424255966,-503.23994898,0.00035616,3]
[310253441,1704424255975,-504.60042011,0.00035616,3]
[310253442,1704424255985,-513.71113781,0.00035616,3]
[310253443,1704424255993,-5012.71,0.00035616,3]
[310253444,1704424256003,-500.0,0.00035616,3]
[310253445,1704424256012,-500.0,0.00035616,3]
[310253446,1704424256022,-500.0,0.00035616,3]
[310253447,1704424256031,-524.43438025,0.00035616,3]
[310253448,1704424256040,-500.0,0.00035616,3]
[310253449,1704424256049,-500.0,0.00035616,3]
[310253450,1704424256059,-1857.63,0.00035616,3]
[310253451,1704424256068,-4528.66,0.00035616,3]
[310253452,1704424256077,-500.34181264,0.00035616,3]
[310253453,1704424256086,-500.0,0.00035616,3]
[310253454,1704424256095,-500.0,0.00035616,3]
[310253455,1704424256104,-500.0,0.00035616,3]
[310253456,1704424256113,-500.0,0.00035616,3]
[310253457,1704424256122,-704.83,0.00035616,3]
[310253458,1704424256131,-2812.81,0.00035616,3]
[310253459,1704424256141,-1953.12,0.00035616,3]
[310253460,1704424256152,-500.0,0.00035616,3]
[310253461,1704424256161,-246.94785736,0.00035616,3]
[310253462,1704424256170,-500.0,0.00035616,3]
[310253463,1704424256179,-500.0,0.00035616,3]
[310253464,1704424256188,-501.21646284,0.00035616,3]
[310253465,1704424256198,-500.0,0.00035616,3]
[310253466,1704424256207,-500.0,0.00035616,3]
[310253467,1704424256217,-527.42126712,0.00035616,3]
[310253468,1704424256226,-500.0,0.00035616,3]
[310253469,1704424256236,-507.49876305,0.00035616,3]
[310253470,1704424256245,-269.18748361,0.00035616,3]
[310253471,1704424256254,-500.0,0.00035616,3]
[310253472,1704424256263,-500.0,0.00035616,3]
[310253473,1704424256272,-500.0,0.00035616,3]
[310253474,1704424256281,-778.9,0.00035616,3]
[310253475,1704424256290,-500.0,0.00035616,3]
[310253476,1704424256300,-500.0,0.00035616,3]
[310253477,1704424256309,-645.58791398,0.00035616,3]
[310253478,1704424256319,-1569.53,0.00035616,3]
[310253479,1704424256328,-509.08006711,0.00035616,3]
[310253480,1704424256337,-500.0,0.00035616,3]
[310253481,1704424256347,-500.0,0.00035616,3]
[310253482,1704424256356,-500.0,0.00035616,3]
[310253483,1704424256365,-502.53385347,0.00035616,3]
[310253484,1704424256375,-500.0,0.00035616,3]
[310253485,1704424256384,-1388.55,0.00035616,3]
[310253486,1704424256394,-500.0,0.00035616,3]
[310253487,1704424256403,-358.30787006,0.00035616,3]
[310253488,1704424256412,-500.0,0.00035616,3]
[310253489,1704424256423,-500.0,0.00035616,3]
[310253490,1704424256433,-500.0,0.00035616,3]
[310253491,1704424256441,-500.0,0.00035616,3]
[310253492,1704424256452,-500.0,0.00035616,3]
[310253493,1704424256461,-500.0,0.00035616,3]
[310253494,1704424256471,-500.0,0.00035616,3]
[310253495,1704424256480,-500.0,0.00035616,3]
[310253496,1704424256489,-500.0,0.00035616,3]
[310253497,1704424256498,-500.0,0.00035616,3]
[310253498,1704424256507,-971.61,0.00035616,3]
[310253499,1704424256516,-2118.07,0.00035616,3]
[310253500,1704424256526,-623.85608019,0.00035616,3]
[310253501,1704424256535,-500.0,0.00035616,3]
[310253502,1704424256544,-500.0,0.00035616,3]
[310253503,1704424256553,-500.0,0.00035616,3]
[310253504,1704424256564,-500.0,0.00035616,3]
[310253505,1704424256573,-1026.23,0.00035616,3]
[310253506,1704424256582,-501.49143737,0.00035616,3]
[310253507,1704424256591,-528.77,0.00035616,3]
[310253508,1704424256601,-500.0,0.00035616,3]
[310253509,1704424256610,-747.51,0.00035616,3]
[310253510,1704424256619,-514.30875189,0.00035616,3]
[310253511,1704424256630,-500.0,0.00035616,3]
[310253512,1704424256639,-573.38956482,0.00035616,3]
[310253513,1704424256648,-232.60777449,0.00035616,3]
[310253514,1704424256657,-500.0,0.00035616,3]
[310253515,1704424256667,-500.0,0.00035616,3]
[310253516,1704424256676,-500.0,0.00035616,3]
[310253517,1704424256687,-515.424479,0.00035616,2]
[310253518,1704424256696,-500.0,0.00035616,3]
[310253519,1704424256707,-500.0,0.00035616,3]
[310253520,1704424256716,-500.0,0.00035616,3]
[310253521,1704424256725,-500.0,0.00035616,3]
[310253522,1704424256734,-500.0,0.00035616,3]
[310253523,1704424256746,-500.0,0.00035616,3]
[310253524,1704424256755,-572.96888211,0.00035616,3]
[310253525,1704424256765,-570.35718213,0.00035616,3]
[310253526,1704424256774,-1231.35,0.00035616,3]
[310253527,1704424256783,-500.0,0.00035616,3]
[310253528,1704424256793,-1256.48,0.00035616,3]
[310253529,1704424256802,-500.0,0.00035616,3]
[310253530,1704424256813,-500.0,0.00035616,3]
[310253531,1704424256822,-505.28141605,0.00035616,3]
[310253532,1704424256831,-500.0,0.00035616,3]
[310253533,1704424256841,-2582.67,0.00035616,3]
[310253534,1704424256850,-500.0,0.00035616,3]
[310253535,1704424256859,-500.0,0.00035616,3]
[310253536,1704424256869,-1321.69,0.00035616,3]
[310253537,1704424256878,-500.0,0.00035616,3]
[310253538,1704424256888,-985.31,0.00035616,3]
[310253539,1704424256898,-500.0,0.00035616,3]
[310253540,1704424256908,-500.0,0.00035616,3]
[310253541,1704424256917,-534.90243599,0.00035616,3]
[310253542,1704424256929,-225.29104541,0.00035616,3]
[310253543,1704424256938,-672.09,0.00035616,3]
[310253544,1704424256947,-500.0,0.00035616,3]
[310253545,1704424256956,-804.83,0.00035616,3]
[310253546,1704424256966,-500.0,0.00035616,3]
[310253547,1704424256975,-500.0,0.00035616,3]
[310253548,1704424256985,-500.0,0.00035616,3]
[310253549,1704424256994,-500.0,0.00035616,3]
[310253550,1704424257005,-1836.89,0.00035616,3]
[310253551,1704424257014,-500.0,0.00035616,3]
[310253552,1704424257023,-1010.49,0.00035616,3]
[310253553,1704424257033,-500.0,0.00035616,3]
[310253554,1704424257042,-511.03036456,0.00035616,3]
[310253555,1704424257052,-507.21045071,0.00035616,3]
[310253556,1704424257062,-500.0,0.00035616,3]
[310253557,1704424257071,-500.0,0.00035616,3]
[310253558,1704424257081,-500.25761628,0.00035616,3]
[310253559,1704424257090,-762.87,0.00035616,3]
[310253560,1704424257101,-500.0,0.00035616,3]
[310253561,1704424257111,-500.0,0.00035616,3]
[310253562,1704424257121,-786.79,0.00035616,3]
[310253563,1704424257133,-934.12,0.00035616,3]
[310253564,1704424257142,-5862.64,0.00035616,3]
[310253565,1704424257151,-1785.52,0.00035616,3]
[310253566,1704424257160,-500.0,0.00035616,3]
[310253567,1704424257170,-500.0,0.00035616,3]
[310253568,1704424257179,-500.0,0.00035616,3]
[310253569,1704424257188,-163.41767204,0.00035616,5]
[310253570,1704424257198,-1633.57243463,0.00035616,7]
[310253571,1704424257207,-500.0,0.00035616,3]
[310253572,1704424257216,-500.0,0.00035616,3]
[310253573,1704424257225,-502.64396593,0.00035616,3]
[310253574,1704424257234,-500.0,0.00035616,3]
[310253575,1704424257243,-912.64,0.00035616,3]
[310253576,1704424257252,-808.85,0.00035616,3]
[310253577,1704424257262,-503.31703998,0.00035616,3]
[310253578,1704424257271,-500.0,0.00035616,3]
[310253579,1704424257280,-500.0,0.00035616,3]
[310253580,1704424257290,-882.36,0.00035616,3]
[310253581,1704424257300,-1259.24,0.00035616,3]
[310253582,1704424257310,-242.13636743,0.00035616,3]
[310253583,1704424257320,-13869.62,0.00035616,3]
[310253584,1704424257330,-500.0,0.00035616,3]
[310253585,1704424257340,-500.0,0.00035616,3]
[310253586,1704424257349,-500.0,0.00035616,3]
[310253587,1704424257358,-500.0,0.00035616,3]
[310253588,1704424257368,-500.0,0.00035616,3]
[310253589,1704424257377,-503.33849702,0.00035616,3]
[310253590,1704424257386,-505.15480595,0.00035616,3]
[310253591,1704424257396,-3101.88,0.00035616,3]
[310253592,1704424257405,-500.0,0.00035616,3]
[310253593,1704424257415,-500.0,0.00035616,3]
[310253594,1704424257424,-785.92,0.00035616,3]
[310253595,1704424257434,-188.87944334,0.00035616,3]
[310253596,1704424257444,-503.86161464,0.00035616,3]
[310253597,1704424257453,-1091.42,0.00035616,3]
[310253598,1704424257463,-500.0,0.00035616,3]
[310253599,1704424257473,-586.04,0.00035616,3]
[310253600,1704424257482,-500.0,0.00035616,3]
[310253601,1704424257492,-500.0,0.00035616,3]
[310253602,1704424257501,-500.0,0.00035616,3]
[310253603,1704424257510,-500.0,0.00035616,3]
[310253604,1704424257520,-500.0,0.00035616,3]
[310253605,1704424257529,-500.0,0.00035616,3]
[310253606,1704424257539,-1268.16,0.00035616,3]
[310253607,1704424257549,-500.0,0.00035616,3]
[310253608,1704424257559,-500.0,0.00035616,3]
[310253609,1704424257568,-505.5793553,0.00035616,3]
[310253610,1704424257577,-500.0,0.00035616,3]
[310253611,1704424257587,-500.0,0.00035616,3]
[310253612,1704424257596,-500.0,0.00035616,3]
[310253613,1704424257605,-593.38,0.00035616,3]
[310253614,1704424257614,-500.0,0.00035616,3]
[310253615,1704424257623,-500.0,0.00035616,3]
[310253616,1704424257633,-606.27,0.00035616,3]
[310253617,1704424257642,-1189.46,0.00035616,3]
[310253618,1704424257651,-500.0,0.00035616,3]
[310253619,1704424257660,-1481.99,0.00035616,3]
[310253620,1704424257670,-500.0,0.00035616,3]
[310253621,1704424257679,-500.0,0.00035616,3]
[310253622,1704424257688,-500.0,0.00035616,3]
[310253623,1704424257698,-500.0,0.00035616,3]
[310253624,1704424257707,-1085.76,0.00035616,3]
[310253625,1704424257716,-1106.51,0.00035616,3]
[310253626,1704424257726,-564.00063123,0.00035616,3]
[310253627,1704424257736,-500.0,0.00035616,3]
[310253628,1704424257747,-534.4993037,0.00035616,3]
[310253629,1704424257757,-500.0,0.00035616,3]
[310253630,1704424257766,-500.0,0.00035616,3]
[310253631,1704424257777,-500.0,0.00035616,3]
[310253632,1704424257787,-500.0,0.00035616,3]
[310253633,1704424257796,-1351.81,0.00035616,3]
[310253634,1704424257806,-500.0,0.00035616,3]
[310253635,1704424257818,-506.59207624,0.00035616,3]
[310253636,1704424257828,-500.0,0.00035616,3]
[310253637,1704424257838,-500.0,0.00035616,3]
[310253638,1704424257848,-500.0,0.00035616,3]
[310253639,1704424257858,-500.0,0.00035616,3]
[310253640,1704424257867,-500.0,0.00035616,3]
[310253641,1704424257877,-500.0,0.00035616,3]
[310253642,1704424257886,-765.09,0.00035616,3]
[310253643,1704424257895,-500.0,0.00035616,3]
[310253644,1704424257905,-500.0,0.00035616,3]
[310253645,1704424257915,-500.0,0.00035616,3]
[310253646,1704424257926,-500.0,0.00035616,3]
[310253647,1704424257936,-500.0,0.00035616,3]
[310253648,1704424257945,-545.65,0.00035616,3]
[310253649,1704424257955,-500.0,0.00035616,3]
[310253650,1704424257964,-500.0,0.00035616,3]
[310253651,1704424257974,-537.24,0.00035616,3]
[310253652,1704424257983,-500.0,0.00035616,3]
[310253653,1704424257993,-500.0,0.00035616,3]
[310253654,1704424258002,-500.0,0.00035616,3]
[310253655,1704424258012,-1151.66,0.00035616,3]
[310253656,1704424258022,-500.0,0.00035616,3]
[310253657,1704424258032,-500.0,0.00035616,3]
[310253658,1704424258041,-180.21552204,0.00035616,2]
[310253659,1704424258050,-512.94093182,0.00035616,3]
[310253660,1704424258061,-358.59366586,0.00035616,3]
[310253661,1704424258074,-506.22489521,0.00035616,3]
[310253662,1704424258083,-779.5,0.00035616,3]
[310253663,1704424258092,-500.0,0.00035616,3]
[310253664,1704424258102,-572.88,0.00035616,3]
[310253665,1704424258112,-1306.66,0.00035616,3]
[310253666,1704424258122,-500.0,0.00035616,3]
[310253667,1704424258132,-500.0,0.00035616,3]
[310253668,1704424258141,-500.0,0.00035616,3]
[310253669,1704424258150,-501.8671854,0.00035616,3]
[310253670,1704424258160,-500.0,0.00035616,3]
[310253671,1704424258170,-500.0,0.00035616,3]
[310253672,1704424258179,-175.44399042,0.00035616,3]
[310253673,1704424258188,-500.0,0.00035616,3]
[310253674,1704424258197,-500.0,0.00035616,3]
[310253675,1704424258206,-500.0,0.00035616,3]
[310253676,1704424258215,-333.38424472,0.00035616,3]
[310253677,1704424258225,-500.0,0.00035616,3]
[310253678,1704424258234,-500.0,0.00035616,3]
[310253679,1704424258244,-8188.31,0.00035616,3]
[310253680,1704424258255,-310.98838772,0.00035616,3]
[310253681,1704424258265,-500.0,0.00035616,3]
[310253682,1704424258274,-500.0,0.00035616,3]
[310253683,1704424258283,-500.0,0.00035616,3]
[310253684,1704424258292,-500.0,0.00035616,3]
[310253685,1704424258301,-1063.95,0.00035616,3]
[310253686,1704424258311,-500.0,0.00035616,3]
[310253687,1704424258320,-798.53,0.00035616,3]
[310253688,1704424258330,-500.0,0.00035616,3]
[310253689,1704424258339,-500.0,0.00035616,3]
[310253690,1704424258348,-500.0,0.00035616,3]